bitfinex/quotes_SOLUSD_20250129
["timestamp","ask_amount","ask_price","bid_price","bid_amount"]
[1738150206995,37.12399136,232.39,232.38,0.036]
[1738150210808,13.34710736,232.39,232.38,0.036]
[1738150211521,13.47259736,232.39,232.38,0.036]
[1738150211705,15.47259736,232.39,232.38,0.036]
[1738150211900,23.776884,232.35,232.27,0.03]
[1738150212103,13.34710736,232.31,232.27,0.03]
[1738150212315,13.34710736,232.29,232.27,0.03]
[1738150212500,13.34710736,232.31,232.27,0.03]
[1738150214621,13.34710736,232.29,232.27,0.03]
[1738150214802,23.776884,232.36,232.27,0.03]
[1738150215121,13.34710736,232.31,232.27,0.03]
[1738150215316,82.5,232.3,232.27,0.03]
[1738150217215,82.5,232.3,232.28,13.34710736]
[1738150217617,82.5,232.3,232.28,14.97850736]
[1738150220322,82.5,232.3,232.28,1.6314]
[1738150220926,82.5,232.3,232.28,1.6614]
[1738150221507,82.5,232.3,232.28,15.00850736]
[1738150221721,82.5,232.36,232.29,0.12549]
[1738150221904,0.063,232.37,232.35,13.34710736]
[1738150226817,0.063,232.37,232.33,13.34710736]
[1738150228534,13.41010736,232.37,232.29,19.35900736]
[1738150230333,13.41010736,232.37,232.27,0.03]
[1738150230334,13.34710736,232.35,232.27,13.37710736]
[1738150230625,13.34710736,232.35,232.28,0.03]
[1738150231439,82.5,232.34,232.28,0.03]
[1738150233029,13.34710736,232.33,232.28,0.03]
[1738150236231,82.5,232.34,232.28,0.03]
[1738150237337,13.34710736,232.35,232.28,0.03]
[1738150237338,82.5,232.33,232.28,0.03]
[1738150240344,82.5,232.33,232.29,13.34710736]
[1738150241032,82.5,232.33,232.28,0.03]
[1738150241033,82.5,232.33,232.31,13.34710736]
[1738150241937,0.063,232.37,232.31,13.34710736]
[1738150242243,0.063,232.37,232.35,13.34710736]
[1738150243921,0.063,232.37,232.3,13.34710736]
[1738150244219,82.5,232.36,232.3,13.34710736]
[1738150244623,82.5,232.36,232.32,13.34710736]
[1738150245535,82.5,232.36,232.34,13.34710736]
[1738150248651,0.063,232.37,232.35,13.34710736]
[1738150248859,0.063,232.37,232.36,13.34710736]
[1738150250341,0.063,232.37,232.36,13.47259736]
[1738150253341,0.063,232.37,232.36,14.47259736]
[1738150254351,0.063,232.37,232.36,13.47259736]
[1738150259272,0.063,232.37,232.36,13.34710736]
[1738150260365,0.063,232.37,232.36,43.47259736]
[1738150260569,0.063,232.37,232.36,28.66057657]
[1738150261067,0.063,232.37,232.36,28.53508657]
[1738150261266,0.063,232.37,232.36,8.53508657]
[1738150263143,0.063,232.37,232.36,8.66057657]
[1738150266044,0.063,232.37,232.36,9.66057657]
[1738150266660,0.063,232.37,232.36,14.45994392]
[1738150267462,0.063,232.37,232.36,13.45994392]
[1738150268757,0.063,232.37,232.36,13.48994392]
[1738150271653,0.063,232.37,232.36,13.32994392]
[1738150273862,0.063,232.37,232.36,13.45543392]
[1738150274667,0.063,232.37,232.36,14.45543392]
[1738150275847,0.063,232.37,232.36,13.45543392]
[1738150276770,0.063,232.37,232.36,14.45543392]
[1738150276943,0.063,232.37,232.36,13.45543392]
[1738150278356,0.063,232.37,232.36,13.48994392]
[1738150278556,0.063,232.37,232.36,14.48994392]
[1738150279866,0.063,232.37,232.36,38.26682792]
[1738150281471,0.063,232.37,232.36,13.48994392]
[1738150282057,0.063,232.37,232.36,14.48994392]
[1738150283979,0.063,232.37,232.36,15.48994392]
[1738150286777,0.063,232.37,232.36,39.39231792]
[1738150287078,82.5,232.46,232.44,20.0]
[1738150287382,82.5,232.5,232.45,13.33445392]
[1738150287551,82.5,232.5,232.47,13.33445392]
[1738150288680,82.5,232.5,232.47,8.53081458]
[1738150290269,82.5,232.54,232.49,8.53081458]
[1738150290470,82.5,232.54,232.52,8.53081458]
[1738150290872,82.5,232.54,232.48,8.65630458]
[1738150291655,82.5,232.54,232.5,8.53081458]
[1738150296567,82.5,232.54,232.52,8.53081458]
[1738150296969,82.5,232.57,232.53,0.12549]
[1738150297177,82.563,232.6,232.55,8.53081458]
[1738150297375,82.563,232.6,232.57,8.53081458]
[1738150299789,82.563,232.6,232.53,8.53081458]
[1738150299980,23.776884,232.59,232.53,8.53081458]
[1738150300294,32.30769858,232.59,232.51,8.53081458]
[1738150300470,82.5,232.58,232.51,8.53081458]
[1738150301170,114.80769858,232.57,232.49,8.53081458]
[1738150304284,23.776884,232.55,232.49,8.53081458]
[1738150304487,23.776884,232.55,232.46,0.12549]
[1738150304488,23.776884,232.55,232.51,8.53081458]
[1738150305684,82.5,232.56,232.53,8.53081458]
[1738150305892,82.5,232.56,232.55,8.53081458]
[1738150308796,0.063,232.58,232.55,8.53081458]
[1738150309311,0.063,232.58,232.5,30.12549]
[1738150309312,0.063,232.58,232.56,8.53081458]
[1738150309503,0.063,232.58,232.57,8.53081458]
[1738150310515,0.063,232.58,232.57,8.65630458]
[1738150311214,0.063,232.58,232.57,32.43318858]
[1738150311400,0.063,232.58,232.57,32.98849696]
[1738150313118,0.063,232.58,232.57,32.98849696]
[1738150313409,0.063,232.58,232.57,9.08612296]
[1738150313589,0.063,232.58,232.57,9.08617859]
[1738150314810,0.063,232.58,232.57,32.98855259]
[1738150316295,0.063,232.58,232.57,9.08617859]
[1738150316496,0.063,232.58,232.57,8.65630458]
[1738150317195,0.063,232.58,232.57,0.12549]
[1738150318723,0.063,232.58,232.56,8.53081458]
[1738150319918,0.063,232.58,232.54,8.53081458]
[1738150323527,82.5,232.57,232.54,8.53081458]
[1738150325523,82.5,232.56,232.5,8.53081458]
[1738150325708,82.5,232.56,232.48,8.53081458]
[1738150325709,84.1352,232.55,232.48,8.53081458]
[1738150327326,84.1352,232.55,232.51,8.53081458]
[1738150327523,84.1352,232.55,232.52,8.53081458]
[1738150329405,0.063,232.58,232.54,8.53081458]
[1738150329610,0.063,232.58,232.57,8.53081458]
[1738150333133,0.063,232.58,232.57,8.65630458]
[1738150335015,0.063,232.58,232.57,32.55867858]
[1738150336322,0.063,232.58,232.57,32.98847657]
[1738150337127,0.063,232.58,232.57,37.28817657]
[1738150339437,0.063,232.58,232.57,13.38580257]
[1738150339626,0.063,232.58,232.57,4.42519]
[1738150340852,0.063,232.58,232.56,8.53081458]
[1738150341140,0.063,232.58,232.57,8.53081458]
[1738150343342,0.063,232.58,232.57,12.83051458]
[1738150350334,0.063,232.58,232.57,8.53081458]
[1738150351261,0.063,232.58,232.56,8.53081458]
[1738150351465,0.063,232.58,232.54,8.53081458]
[1738150352444,0.063,232.58,232.55,8.53081458]
[1738150353046,0.063,232.58,232.56,8.53081458]
[1738150353434,0.063,232.58,232.57,8.53081458]
[1738150354148,0.063,232.58,232.56,8.53081458]
[1738150355052,0.063,232.58,232.57,8.53081458]
[1738150357548,0.063,232.58,232.55,8.53081458]
[1738150357936,0.063,232.58,232.56,8.53081458]
[1738150358630,0.063,232.58,232.53,24.3003]
[1738150358836,0.063,232.58,232.55,8.53081458]
[1738150362062,0.063,232.58,232.57,8.53081458]
[1738150365663,0.063,232.58,232.57,12.83051458]
[1738150366662,0.063,232.58,232.57,8.53081458]
[1738150366869,0.063,232.58,232.57,12.83051458]
[1738150376754,0.063,232.58,232.57,12.95600458]
[1738150384383,0.063,232.6,232.59,50.25098]
[1738150384561,0.063,232.66,232.64,20.0]
[1738150384770,0.063,232.66,232.64,28.53081458]
[1738150387287,0.063,232.66,232.64,12.82921458]
[1738150390279,0.063,232.66,232.64,42.95470458]
[1738150394967,0.063,232.66,232.64,43.08019458]
[1738150398576,0.063,232.66,232.64,42.95470458]
[1738150404017,0.063,232.66,232.64,12.82921458]
[1738150404217,0.063,232.66,232.64,8.53081458]
[1738150406382,91.03081458,232.61,232.53,8.53081458]
[1738150408084,12.83021458,232.59,232.51,8.53081458]
[1738150408283,8.53081458,232.57,232.51,8.53081458]
[1738150408493,10.15451458,232.55,232.47,8.53081458]
[1738150408994,82.5,232.54,232.47,8.53081458]
[1738150410206,82.5,232.54,232.49,8.53081458]
[1738150411889,82.5,232.54,232.46,4.3016]
[1738150411890,86.8003,232.54,232.47,8.53081458]
[1738150412086,8.53081458,232.53,232.45,15.27207661]
[1738150412291,86.8007,232.52,232.45,15.27207661]
[1738150413093,86.8007,232.52,232.47,0.03]
[1738150415208,82.5,232.52,232.47,8.56081458]
[1738150415708,82.5,232.51,232.47,8.56081458]
[1738150417188,82.5,232.51,232.48,12.83221458]
[1738150417394,82.5,232.51,232.5,8.53081458]
[1738150417596,5.924,232.55,232.5,8.53081458]
[1738150418106,14.45481458,232.55,232.48,8.53081458]
[1738150418308,5.924,232.55,232.49,8.53081458]
[1738150421702,82.5,232.5,232.49,8.53081458]
[1738150422411,82.5,232.5,232.48,8.53081458]
[1738150424616,82.5,232.5,232.48,12.83221458]
[1738150425096,82.5,232.5,232.49,8.53081458]
[1738150430124,82.5,232.5,232.49,12.83201458]
[1738150430426,82.5,232.5,232.49,8.53081458]
[1738150432728,82.5,232.5,232.47,8.56081458]
[1738150433433,82.5,232.49,232.47,8.56081458]
[1738150439431,82.5,232.48,232.47,8.56081458]
[1738150439830,82.5,232.48,232.47,12.86241458]
[1738150440549,82.5,232.48,232.47,0.03]
[1738150442419,23.902374,232.48,232.47,0.03]
[1738150442625,25.405074,232.47,232.39,8.53081458]
[1738150442948,23.776884,232.45,232.37,8.56081458]
[1738150443126,82.5,232.44,232.37,8.56081458]
[1738150443527,82.5,232.44,232.39,8.53081458]
[1738150445528,82.5,232.44,232.39,12.83381458]
[1738150447021,82.5,232.44,232.39,8.53081458]
[1738150448227,82.5,232.43,232.39,8.53081458]
[1738150448838,86.8023,232.43,232.38,0.03]
[1738150449958,28.079484,232.42,232.38,0.03]
[1738150450124,82.5,232.41,232.38,0.03]
[1738150451158,82.5,232.41,232.38,8.56081458]
[1738150451336,82.5,232.41,232.4,8.53081458]
[1738150451525,2.0,232.53,232.4,8.53081458]
[1738150451526,82.5,232.46,232.4,8.53081458]
[1738150451730,82.5,232.46,232.45,8.53081458]
[1738150451940,3.31799136,232.53,232.45,12.83271458]
[1738150452137,1.5128,232.53,232.47,8.53081458]
[1738150452351,82.5,232.52,232.47,8.53081458]
[1738150454158,82.5,232.52,232.47,12.83241458]
[1738150454661,82.5,232.56,232.47,12.83241458]
[1738150454838,82.5,232.56,232.47,42.83241458]
[1738150458370,82.5,232.56,232.47,42.95790458]
[1738150461654,82.5,232.56,232.47,12.83241458]
[1738150462542,4.3001,232.55,232.47,12.83241458]
[1738150462962,82.5,232.56,232.47,12.83241458]
[1738150463281,82.5,232.55,232.47,12.83241458]
[1738150464180,80.963,232.55,232.5,20.0]
[1738150464345,80.963,232.54,232.51,8.53081458]
[1738150466046,80.963,232.54,232.49,8.53081458]
[1738150466551,85.2633,232.54,232.49,8.53081458]
[1738150466759,89.49381458,232.53,232.46,12.83241458]
[1738150468668,85.2637,232.52,232.46,8.53081458]
[1738150468873,104.739884,232.51,232.46,8.53081458]
[1738150471879,109.103784,232.51,232.46,8.53081458]
[1738150472058,80.963,232.5,232.46,8.53081458]
[1738150472258,80.963,232.49,232.46,8.53081458]
[1738150475081,80.963,232.49,232.46,12.83241458]
[1738150476361,80.963,232.49,232.46,8.53081458]
[1738150476568,80.963,232.49,232.44,8.53081458]
[1738150477684,85.2642,232.49,232.44,8.53081458]
[1738150477977,80.963,232.48,232.44,8.53081458]
[1738150480862,80.963,232.47,232.42,8.53081458]
[1738150481063,80.963,232.47,232.38,0.03]
[1738150481064,23.776884,232.46,232.4,8.53081458]
[1738150481267,80.963,232.45,232.4,8.53081458]
[1738150482573,23.776884,232.44,232.38,8.56081458]
[1738150482880,4.3023,232.43,232.38,0.03]
[1738150483089,104.739884,232.42,232.38,0.03]
[1738150483471,80.963,232.42,232.38,8.56081458]
[1738150483673,80.963,232.42,232.4,0.03]
[1738150484276,23.902374,232.41,232.4,0.03]
[1738150485085,28.205074,232.41,232.4,0.03]
[1738150486791,36.73588858,232.41,232.4,0.03]
[1738150489589,43.902374,232.39,232.38,0.03]
[1738150489784,52.43318858,232.39,232.38,0.03]
[1738150491375,56.73628858,232.39,232.38,0.03]
[1738150494992,57.86177858,232.39,232.38,0.03]
[1738150495899,58.86177858,232.39,232.38,0.03]
[1738150497982,57.86177858,232.39,232.38,0.03]
[1738150498998,32.95940458,232.39,232.38,0.03]
[1738150499184,12.95940458,232.39,232.38,0.03]
[1738150501308,36.86177858,232.39,232.38,0.03]
[1738150503292,108.527864,232.38,232.37,0.03]
[1738150503508,117.05867858,232.38,232.36,0.0001]
[1738150503698,39.10577858,232.37,232.36,0.0001]
[1738150503899,40.67257858,232.37,232.36,0.0001]
[1738150505105,44.97597858,232.37,232.36,0.0001]
[1738150506225,32.43318858,232.29,232.28,0.03]
[1738150508321,36.86357858,232.29,232.28,0.03]
[1738150508731,37.86357858,232.29,232.28,0.03]
[1738150511195,36.86357858,232.29,232.28,0.03]
[1738150511512,12.96120458,232.29,232.28,0.03]
[1738150511702,8.65630458,232.29,232.28,0.03]
[1738150511903,12.96120458,232.29,232.28,0.03]
[1738150517336,36.73808858,232.29,232.28,0.03]
[1738150523906,37.73808858,232.29,232.28,0.03]
[1738150524721,24.902374,232.28,232.27,0.0001]
[1738150524922,33.43318858,232.28,232.27,0.0001]
[1738150526233,44.902374,232.25,232.24,0.03]
[1738150526433,53.43318858,232.25,232.24,0.0001]
[1738150526732,52.43318858,232.25,232.24,0.0001]
[1738150527929,57.73888858,232.25,232.24,0.0001]
[1738150528330,24.902374,232.24,232.23,0.0001]
[1738150528529,33.43318858,232.24,232.23,0.0001]
[1738150528732,33.43318858,232.24,232.16,0.03]
[1738150528733,0.12549,232.18,232.16,0.03]
[1738150529030,114.93318858,232.17,232.16,0.03]
[1738150529329,32.43318858,232.17,232.16,0.03]
[1738150529526,32.55867858,232.17,232.16,0.03]
[1738150530034,36.86577858,232.17,232.16,0.03]
[1738150530217,0.25098,232.15,232.06,1.5427]
[1738150530426,8.53081458,232.11,232.06,1.5427]
[1738150530622,0.25098,232.15,232.03,6.1398]
[1738150530623,0.12549,232.08,232.03,6.1398]
[1738150530822,82.5,232.07,232.03,6.1398]
[1738150533123,82.5,232.07,232.03,10.4495]
[1738150535617,0.12549,232.06,232.03,6.1398]
[1738150536025,82.5,232.07,232.04,8.53081458]
[1738150536723,82.5,232.07,232.05,8.53081458]
[1738150537646,82.5,232.07,232.06,4.3092]
[1738150538324,82.5,232.12,232.06,4.3092]
[1738150538926,82.5,232.11,232.07,8.53081458]
[1738150539721,82.5,232.11,232.08,4.3088]
[1738150543451,82.5,232.1,232.08,4.3088]
[1738150544122,82.5,232.1,232.07,12.83981458]
[1738150544322,82.5,232.1,232.08,0.03]
[1738150549453,82.5,232.09,232.08,0.03]
[1738150560055,82.5,232.13,232.08,0.03]
[1738150560255,82.5,232.13,232.12,8.53081458]
[1738150560762,82.5,232.13,232.12,15.15821458]
[1738150561561,82.5,232.13,232.12,19.46631458]
[1738150564166,0.063,232.14,232.12,19.46631458]
[1738150565159,0.063,232.14,232.13,8.53081458]
[1738150565561,0.063,232.14,232.13,12.83871458]
[1738150565769,0.063,232.14,232.12,8.53081458]
[1738150567977,0.063,232.14,232.11,8.53081458]
[1738150571158,0.063,232.14,232.13,8.53081458]
[1738150573783,0.063,232.14,232.13,12.83871458]
[1738150576679,0.063,232.14,232.13,8.53081458]
[1738150577576,0.063,232.14,232.13,12.83871458]
[1738150582484,0.063,232.14,232.13,12.83871458]
[1738150582681,0.063,232.14,232.13,8.53081458]
[1738150582887,0.063,232.14,232.11,12.83891458]
[1738150583381,4.3707,232.14,232.09,8.53081458]
[1738150583568,82.62549,232.13,232.08,0.03]
[1738150583761,82.5,232.12,232.08,0.03]
[1738150584478,82.5,232.11,232.08,0.03]
[1738150585981,82.62549,232.1,232.08,0.03]
[1738150586185,95.46480458,232.1,232.08,0.03]
[1738150586387,106.402374,232.09,232.01,8.53081458]
[1738150586564,23.902374,232.07,232.01,8.53081458]
[1738150586764,0.12549,232.07,231.99,8.53081458]
[1738150587076,0.12549,232.07,232.01,8.53081458]
[1738150588282,82.5,232.08,232.01,12.84091458]
[1738150589283,82.5,232.08,232.03,8.53081458]
[1738150589472,82.5,232.08,232.05,8.53081458]
[1738150590779,82.5,232.08,232.07,8.53081458]
[1738150591089,82.5,232.13,232.07,8.53081458]
[1738150591676,82.5,232.12,232.09,8.53081458]
[1738150593384,82.5,232.12,232.1,8.53081458]
[1738150594673,82.5,232.12,232.11,8.53081458]
[1738150595687,82.5,232.12,232.09,8.53081458]
[1738150599594,82.5,232.12,232.09,12.83941458]
[1738150600199,0.063,232.14,232.09,4.3086]
[1738150600499,0.063,232.14,232.13,8.53081458]
[1738150602399,0.063,232.14,232.13,12.83871458]
[1738150611011,0.063,232.17,232.16,20.0]
[1738150611303,0.063,232.17,232.16,28.53081458]
[1738150612510,0.063,232.17,232.16,32.83811458]
[1738150618626,0.063,232.17,232.16,8.53081458]
[1738150618908,0.063,232.17,232.14,8.53081458]
[1738150619998,0.063,232.17,232.12,8.53081458]
[1738150620200,4.49569,232.17,232.1,8.53081458]
[1738150620717,0.18849,232.17,232.1,8.53081458]
[1738150621608,4.49559,232.17,232.1,8.53081458]
[1738150622804,0.063,232.17,232.12,8.53081458]
[1738150622997,0.063,232.17,232.15,8.53081458]
[1738150624613,0.063,232.17,232.15,12.83831458]
[1738150630109,0.063,232.17,232.16,8.53081458]
[1738150630826,0.063,232.17,232.16,12.83811458]
[1738150636332,82.5,232.25,232.21,20.0]
[1738150636528,82.5,232.3,232.24,8.53081458]
[1738150636706,82.5,232.29,232.21,30.0]
[1738150638431,82.5,232.29,232.22,4.3062]
[1738150638735,82.5,232.29,232.28,8.53081458]
[1738150640441,82.563,232.29,232.28,8.53081458]
[1738150641616,82.563,232.29,232.24,8.53081458]
[1738150642635,86.8681,232.29,232.24,8.53081458]
[1738150643214,82.563,232.29,232.26,8.53081458]
[1738150643716,82.563,232.29,232.27,8.53081458]
[1738150644131,82.563,232.29,232.26,8.53081458]
[1738150645216,86.8679,232.29,232.25,8.53081458]
[1738150647426,82.5,232.28,232.25,8.53081458]
[1738150648721,82.5,232.28,232.27,8.53081458]
[1738150649630,82.5,232.28,232.25,8.53081458]
[1738150653356,82.5,232.27,232.25,8.53081458]
[1738150654961,82.5,232.27,232.25,12.83641458]
[1738150658050,0.063,232.28,232.27,20.0]
[1738150658253,0.063,232.28,232.27,28.53081458]
[1738150660441,0.063,232.36,232.35,8.53081458]
[1738150662651,0.063,232.36,232.33,8.53081458]
[1738150664653,0.063,232.36,232.35,8.53081458]
[1738150667347,0.063,232.36,232.35,12.83461458]
[1738150667550,0.063,232.36,232.35,8.53081458]
[1738150667935,0.063,232.36,232.33,8.53081458]
[1738150669652,82.5,232.35,232.33,8.53081458]
[1738150671262,82.5,232.35,232.33,12.83491458]
[1738150673349,82.5,232.35,232.33,8.53081458]
[1738150675463,82.5,232.35,232.33,12.83491458]
[1738150677865,82.5,232.35,232.33,8.53081458]
[1738150678059,82.5,232.35,232.29,0.03]
[1738150678060,82.5,232.34,232.29,8.56081458]
[1738150678249,82.5,232.33,232.29,0.03]
[1738150680966,82.5,232.32,232.29,8.56081458]
[1738150681369,82.5,232.32,232.31,8.53081458]
[1738150683560,82.5,232.32,232.31,12.83531458]
[1738150683761,0.063,232.36,232.31,46.9585729]
[1738150683965,0.063,232.36,232.35,8.53081458]
[1738150685860,0.063,232.36,232.35,12.83461458]
[1738150686366,0.063,232.36,232.35,8.53081458]
[1738150689874,0.063,232.36,232.35,12.83461458]
[1738150690975,0.063,232.36,232.35,13.26488738]
[1738150691670,0.063,232.36,232.35,13.39037738]
[1738150691969,0.063,232.38,232.37,20.0]
[1738150692192,0.063,232.38,232.37,28.96102746]
[1738150692367,0.063,232.41,232.37,28.96102746]
[1738150692368,0.063,232.41,232.39,30.0]
[1738150692669,0.063,232.41,232.4,9.08648409]
[1738150693169,0.063,232.41,232.4,32.86336809]
[1738150693358,0.063,232.51,232.43,50.0]
[1738150693564,0.063,232.51,232.49,8.53081458]
[1738150693769,0.063,232.51,232.5,4.301]
[1738150695775,0.063,232.51,232.49,8.53081458]
[1738150696197,0.063,232.51,232.49,12.83201458]
[1738150696576,0.063,232.51,232.5,13.32322702]
[1738150698371,0.063,232.51,232.5,17.62422702]
[1738150698778,0.063,232.51,232.5,13.32322702]
[1738150699078,0.063,232.51,232.5,17.62422702]
[1738150705471,0.063,232.51,232.5,13.32322702]
[1738150705669,0.063,232.51,232.41,89.6685]
[1738150705670,0.063,232.51,232.48,13.32322702]
[1738150708686,0.063,232.51,232.46,13.32322702]
[1738150708881,0.063,232.51,232.41,9.4085]
[1738150708882,82.5,232.5,232.44,13.32322702]
[1738150709094,82.5,232.49,232.42,13.32322702]
[1738150709281,82.5,232.48,232.42,13.32322702]
[1738150711598,86.8015,232.48,232.42,13.32322702]
[1738150712694,82.5,232.47,232.42,13.32322702]
[1738150713301,82.5,232.47,232.44,13.32322702]
[1738150718318,86.8016,232.47,232.42,13.32322702]
[1738150718618,95.33787991,232.47,232.41,0.03]
[1738150718800,84.1066,232.46,232.41,0.03]
[1738150721294,4.302,232.45,232.41,0.03]
[1738150721497,82.5,232.44,232.41,0.03]
[1738150721897,82.5,232.44,232.41,8.56627991]
[1738150724807,82.5,232.44,232.43,8.53627991]
[1738150737820,82.563,232.44,232.43,8.53627991]
[1738150740705,86.8651,232.44,232.41,0.03]
[1738150742419,82.5,232.43,232.41,0.03]
[1738150744528,4.3025,232.42,232.41,0.03]
[1738150745753,23.965374,232.44,232.29,0.03]
[1738150746033,8.53627991,232.38,232.29,8.56627991]
[1738150746212,82.5,232.37,232.29,8.56627991]
[1738150746612,0.12549,232.36,232.29,8.56627991]
[1738150747230,82.5,232.35,232.29,8.56627991]
[1738150747830,4.304,232.34,232.29,8.56627991]
[1738150748241,82.5,232.35,232.33,8.53627991]
[1738150751617,82.5,232.4,232.33,8.53627991]
[1738150751816,82.5,232.4,232.39,8.53627991]
[1738150755058,82.5,232.4,232.37,8.53627991]
[1738150755256,86.8029,232.4,232.37,8.53627991]
[1738150757356,82.5,232.39,232.37,8.53627991]
[1738150757751,86.8031,232.39,232.37,8.53627991]
[1738150758055,86.8031,232.39,232.34,8.53627991]
[1738150758237,82.5,232.38,232.32,8.53627991]
[1738150759061,0.12549,232.37,232.3,8.53627991]
[1738150759235,82.5,232.36,232.3,8.53627991]
[1738150759435,4.304,232.34,232.29,0.03]
[1738150759650,82.5,232.33,232.29,0.03]
[1738150759956,82.5,232.33,232.3,8.53627991]
[1738150760859,82.5,232.33,232.32,0.03]
[1738150761543,82.5,232.33,232.32,8.56627991]
[1738150761750,82.5,232.4,232.32,8.56627991]
[1738150761933,86.8029,232.4,232.37,8.53627991]
[1738150762662,86.8029,232.4,232.36,13.34180124]
[1738150763941,86.8029,232.4,232.38,13.34180124]
[1738150765355,82.5,232.4,232.38,13.34180124]
[1738150766163,82.5,232.39,232.38,13.34180124]
[1738150773579,82.5,232.39,232.36,13.34180124]
[1738150773796,86.8031,232.39,232.36,13.34180124]
[1738150774071,86.8031,232.39,232.37,0.03]
[1738150775145,82.5,232.39,232.38,13.34180124]
[1738150776582,82.5,232.39,232.37,0.03]
[1738150776879,86.8031,232.39,232.37,0.03]
[1738150777043,82.5,232.39,232.37,0.03]
[1738150780168,82.5,232.39,232.38,13.34180124]
[1738150782587,82.5,232.39,232.37,0.03]
[1738150785164,82.5,232.39,232.38,8.53850256]
[1738150797191,86.8031,232.39,232.37,0.03]
[1738150797789,82.5,232.38,232.37,0.03]
[1738150800071,86.8032,232.38,232.37,0.03]
[1738150800873,82.5,232.38,232.37,0.03]
[1738150801873,0.063,232.41,232.37,0.03]
[1738150802172,82.5,232.4,232.37,0.03]
[1738150802380,82.5,232.4,232.39,8.53850256]
[1738150804694,82.5,232.4,232.37,0.03]
[1738150804695,86.8029,232.4,232.37,8.56850256]
[1738150804872,86.8029,232.4,232.37,0.03]
[1738150805396,8.66399256,232.38,232.37,0.03]
[1738150805595,0.12549,232.37,232.32,0.03]
[1738150805788,91.03850256,232.36,232.32,0.03]
[1738150805988,82.5,232.35,232.32,0.03]
[1738150807477,4.304,232.34,232.32,0.03]
[1738150810499,82.5,232.35,232.32,0.03]
[1738150810887,82.5,232.34,232.32,0.03]
[1738150812703,4.3042,232.33,232.32,0.03]
[1738150814918,4.42969,232.33,232.32,0.03]
[1738150815994,28.206574,232.33,232.32,0.03]
[1738150819388,29.94981343,232.33,232.32,0.03]
[1738150821001,31.48451343,232.33,232.32,0.0001]
[1738150822600,7.70762943,232.33,232.32,0.0001]
[1738150822806,4.42969,232.33,232.32,0.0001]
[1738150829207,4.3038,232.35,232.32,0.0001]
[1738150830712,4.3042,232.33,232.32,0.0001]
[1738150833404,8.53850256,232.36,232.32,0.0001]
[1738150833719,10.8217,232.37,232.32,0.0001]
[1738150833720,4.3039,232.35,232.32,0.0001]
[1738150834403,0.063,232.37,232.33,8.53850256]
[1738150834804,0.063,232.37,232.35,8.53850256]
[1738150837082,0.063,232.37,232.33,8.53850256]
[1738150839289,0.063,232.37,232.35,8.53850256]
[1738150840615,82.5,232.36,232.35,8.53850256]
[1738150841813,82.5,232.36,232.35,12.84230256]
[1738150845893,82.563,232.36,232.35,12.84230256]
[1738150846415,0.063,232.36,232.35,12.84230256]
[1738150851336,0.063,232.36,232.35,8.53850256]
[1738150851718,0.063,232.36,232.35,12.84230256]
[1738150858522,0.063,232.36,232.35,36.74467656]
[1738150859102,0.063,232.36,232.35,37.17488132]
[1738150861527,0.063,232.36,232.35,36.74467656]
[1738150862710,0.063,232.36,232.35,37.87016656]
[1738150863424,0.063,232.37,232.36,1.12549]
[1738150864738,0.063,232.37,232.36,4.42909]